bitfinex/quotes_ETHUSD_20230105
["timestamp","ask_amount","ask_price","bid_price","bid_amount"]
[1672926008899,28.05666951,1249.4,1249.3,0.06669794]
[1672926009323,31.02295227,1249.4,1249.3,0.06669794]
[1672926010162,36.62375227,1249.4,1249.3,0.06669794]
[1672926010314,36.02295227,1249.4,1249.3,7.94e-06]
[1672926010524,36.25295227,1249.4,1249.3,7.94e-06]
[1672926010734,45.17099263,1249.4,1249.3,7.94e-06]
[1672926010944,42.2358531,1249.4,1249.3,7.94e-06]
[1672926011803,33.65746951,1249.4,1249.3,7.94e-06]
[1672926012256,36.62561098,1249.4,1249.3,7.94e-06]
[1672926012466,37.2168531,1249.4,1249.3,7.94e-06]
[1672926013939,37.4468531,1249.4,1249.3,7.94e-06]
[1672926014533,36.62483447,1249.4,1249.3,7.94e-06]
[1672926014975,7.43015464,1249.4,1249.3,7.94e-06]
[1672926015148,23.43783464,1249.4,1249.3,7.94e-06]
[1672926015363,21.06368,1249.4,1249.3,7.94e-06]
[1672926016035,35.43082415,1249.4,1249.3,7.94e-06]
[1672926016256,38.39818911,1249.4,1249.3,7.94e-06]
[1672926016435,19.42314415,1249.4,1249.3,7.94e-06]
[1672926017395,22.42698415,1249.4,1249.3,7.94e-06]
[1672926017615,6.41930415,1249.4,1249.3,7.94e-06]
[1672926017944,22.42698415,1249.4,1249.3,7.94e-06]
[1672926018252,30.43082415,1249.4,1249.3,7.94e-06]
[1672926018467,31.02403447,1249.4,1249.3,7.94e-06]
[1672926018675,33.39798504,1249.4,1249.3,7.94e-06]
[1672926018888,36.02403447,1249.4,1249.3,7.94e-06]
[1672926019209,43.18690943,1249.4,1249.3,7.94e-06]
[1672926019375,50.2396931,1249.4,1249.3,7.94e-06]
[1672926019779,45.4506931,1249.4,1249.3,7.94e-06]
[1672926020130,37.4468531,1249.4,1249.3,7.94e-06]
[1672926020339,25.88362951,1249.4,1249.3,7.94e-06]
[1672926020550,36.6239167,1249.4,1249.3,7.94e-06]
[1672926020929,32.63476719,1249.4,1249.3,7.94e-06]
[1672926021141,5.056,1249.4,1249.3,7.94e-06]
[1672926021351,0.056,1249.4,1249.3,7.94e-06]
[1672926021611,16.00768,1249.4,1249.3,7.94e-06]
[1672926021781,8.05984,1249.4,1249.3,7.94e-06]
[1672926021994,0.056,1249.4,1249.3,7.94e-06]
[1672926022205,2.3732804,1249.5,1249.3,7.94e-06]
[1672926023297,13.40879759,1249.6,1249.3,7.94e-06]
[1672926023504,13.39879759,1249.6,1249.3,7.94e-06]
[1672926023741,5.8732804,1249.5,1249.3,7.94e-06]
[1672926023873,13.9326104,1249.5,1249.3,7.94e-06]
[1672926024085,10.4326104,1249.5,1249.3,7.94e-06]
[1672926024311,18.4359404,1249.5,1249.3,7.94e-06]
[1672926024526,26.4392704,1249.5,1249.3,7.94e-06]
[1672926025363,29.40571759,1249.5,1249.3,7.94e-06]
[1672926026097,33.3948671,1249.5,1249.3,7.94e-06]
[1672926026309,33.9955671,1249.5,1249.3,7.94e-06]
[1672926026510,33.3948671,1249.5,1249.3,7.94e-06]
[1672926026993,3.5,1249.4,1249.3,7.94e-06]
[1672926027154,27.51152,1249.4,1249.3,7.94e-06]
[1672926027372,29.8848004,1249.4,1249.3,7.94e-06]
[1672926027779,29.9408004,1249.4,1249.3,7.94e-06]
[1672926028212,26.4408004,1249.4,1249.3,7.94e-06]
[1672926029904,29.40724759,1249.4,1249.3,7.94e-06]
[1672926030146,33.3963971,1249.4,1249.3,7.94e-06]
[1672926030338,30.42994991,1249.4,1249.3,7.94e-06]
[1672926030495,33.3963971,1249.4,1249.3,7.94e-06]
[1672926031461,30.42994991,1249.4,1249.3,7.94e-06]
[1672926031675,30.32550927,1249.4,1249.3,7.94e-06]
[1672926032235,33.29195646,1249.4,1249.3,7.94e-06]
[1672926034512,30.91867606,1249.4,1249.3,7.94e-06]
[1672926035305,26.92952655,1249.4,1249.3,7.94e-06]
[1672926036652,21.407816,1249.4,1249.3,7.94e-06]
[1672926037233,13.403976,1249.4,1249.3,7.94e-06]
[1672926037810,21.407816,1249.4,1249.3,7.94e-06]
[1672926038147,29.411656,1249.4,1249.3,7.94e-06]
[1672926038525,19.03012719,1249.4,1249.3,7.94e-06]
[1672926038733,21.40923516,1249.4,1249.3,7.94e-06]
[1672926038965,27.03396719,1249.4,1249.3,7.94e-06]
[1672926040213,29.41311055,1249.4,1249.3,7.94e-06]
[1672926041081,21.40927055,1249.4,1249.3,7.94e-06]
[1672926042291,11.02628719,1249.4,1249.3,7.94e-06]
[1672926042622,19.03012719,1249.4,1249.3,7.94e-06]
[1672926047575,19.04107619,1249.4,1249.3,7.94e-06]
[1672926048939,11.03723619,1249.4,1249.3,7.94e-06]
[1672926050190,11.03723619,1249.4,1249.3,16.00896794]
[1672926050191,2.43798939,1249.4,1249.3,16.00896794]
[1672926050460,2.38198939,1249.4,1249.3,26.82443203]
[1672926050651,2.38198939,1249.4,1249.3,10.81547203]
[1672926051037,2.38198939,1249.4,1249.3,18.81995203]
[1672926051247,2.38198939,1249.4,1249.3,10.81547203]
[1672926051794,3.04339619,1249.5,1249.3,29.82443203]
[1672926051795,2.44798939,1249.5,1249.3,29.82443203]
[1672926051984,5.42538558,1249.6,1249.4,7.48914951]
[1672926052202,2.43798939,1249.6,1249.5,19.0064]
[1672926052446,2.98739619,1249.7,1249.5,27.0692263]
[1672926052447,5.42538558,1249.7,1249.5,27.0692263]
[1672926052663,2.43798939,1249.7,1249.5,31.01844852]
[1672926052877,2.38198939,1249.7,1249.5,31.01844852]
[1672926053977,2.38198939,1249.7,1249.5,21.51524852]
[1672926054234,5.42538558,1249.8,1249.5,33.50759803]
[1672926054458,2.43798939,1249.8,1249.5,33.50759803]
[1672926054605,0.09397677,1249.9,1249.8,1.19196484]
[1672926054924,0.02797677,1249.9,1249.8,13.30159083]
[1672926055134,0.02997677,1249.9,1249.8,32.36177713]
[1672926055392,0.02797677,1249.9,1249.8,32.36377713]
[1672926055593,0.02797677,1249.9,1249.8,32.59377713]
[1672926056452,0.02797677,1249.9,1249.8,32.62610487]
[1672926056663,6.77e-06,1249.9,1249.8,45.03980221]
[1672926056815,3.45e-06,1250.0,1249.9,10.651]
[1672926057029,3.45e-06,1250.0,1249.9,26.72261489]
[1672926057231,3.45e-06,1250.0,1249.9,46.78829121]
[1672926057436,3.45e-06,1250.0,1249.9,22.30781196]
[1672926057704,3.45e-06,1250.0,1249.9,38.07909196]
[1672926057919,3.45e-06,1250.0,1249.9,46.30973196]
[1672926058078,3.45e-06,1250.0,1249.9,54.70873196]
[1672926058764,0.02876728,1250.2,1250.1,32.39708]
[1672926058930,0.02876728,1250.2,1250.1,55.28269289]
[1672926059143,0.02876728,1250.2,1250.1,65.26556381]
[1672926060460,0.02876728,1250.2,1250.1,48.86720381]
[1672926060629,0.02876728,1250.2,1250.1,26.86784381]
[1672926062685,0.02876728,1250.2,1250.1,42.86656381]
[1672926063851,0.02876728,1250.2,1250.1,3.6493343]
[1672926064061,0.02876728,1250.2,1250.0,0.0596263]
[1672926064384,0.02876728,1250.2,1250.0,11.98905951]
[1672926064559,0.02876728,1250.2,1250.0,28.04868581]
[1672926064959,0.02876728,1250.2,1250.1,3.0]
[1672926066363,16.02620728,1250.2,1250.1,3.0]
[1672926066567,16.08220728,1250.2,1250.0,3.0596263]
[1672926066735,8.08348728,1250.2,1250.0,3.0]
[1672926066946,0.08476728,1250.2,1250.0,10.99998]
[1672926067172,0.02876728,1250.2,1250.0,21.64660552]
[1672926067746,0.02876728,1250.2,1250.0,13.64660552]
[1672926068263,0.02876728,1250.2,1250.0,33.63575503]
[1672926068264,7.28e-06,1250.2,1250.0,33.63575503]
[1672926069561,7.28e-06,1250.2,1250.0,25.63575503]
[1672926070781,23.99623728,1250.2,1250.0,9.63577503]
[1672926070928,24.05223728,1250.2,1250.0,5.64662552]
[1672926071139,16.05344728,1250.2,1250.0,5.64662552]
[1672926071403,8.05472728,1250.2,1250.0,5.64662552]
[1672926071993,24.05223728,1250.2,1250.0,5.64662552]
[1672926072612,16.05344728,1250.2,1250.0,5.64662552]
[1672926072822,0.05600728,1250.2,1250.0,5.64662552]
[1672926073098,7.28e-06,1250.2,1250.0,5.64662552]
[1672926073452,7.28e-06,1250.2,1250.0,5.64389999]
[1672926073928,15.99753728,1250.2,1250.0,3.05690077]
[1672926074156,16.05353728,1250.2,1250.0,2.99727447]
[1672926074508,24.05234728,1250.2,1250.0,2.99454887]
[1672926075599,24.05234728,1250.2,1250.0,2.99182334]
[1672926076505,24.05234728,1250.2,1250.0,2.98909774]
[1672926076654,24.65274728,1250.2,1249.9,0.0616263]
[1672926076865,24.65274728,1250.2,1249.9,0.002]
[1672926077089,3.5,1250.1,1249.9,0.002]
[1672926077385,16.0,1250.0,1249.8,1.31116132]
[1672926077657,16.056,1250.0,1249.8,5.30031083]
[1672926077867,16.056,1250.0,1249.8,5.35993713]
[1672926078176,8.056,1250.0,1249.9,2.98124407]
[1672926078330,8.056,1250.0,1249.9,2.96048641]
[1672926078331,0.056,1250.0,1249.9,2.96048641]
[1672926078666,16.0,1250.0,1249.9,2.96048641]
[1672926078879,8.056,1250.0,1249.9,2.96048641]
[1672926079292,0.056,1250.0,1249.9,2.96048641]
[1672926079499,31.70519728,1250.2,1249.9,4.57186176]
[1672926079731,39.70434728,1250.2,1249.9,4.57186176]
[1672926079915,39.70434728,1250.2,1249.9,16.56158127]
[1672926079916,0.05600728,1250.2,1249.9,16.56158127]
[1672926080164,7.28e-06,1250.2,1249.9,33.10104682]
[1672926080370,7.28e-06,1250.2,1250.0,3.96838044]
[1672926080712,7.28e-06,1250.2,1250.1,24.47663925]
[1672926081027,7.28e-06,1250.2,1250.1,28.52541506]
[1672926081239,7.28e-06,1250.2,1250.1,31.52541506]
[1672926081409,7.28e-06,1250.2,1250.1,31.51023605]
[1672926081621,7.28e-06,1250.2,1250.1,23.51087605]
[1672926081865,7.28e-06,1250.2,1250.1,27.91289186]
[1672926082077,7.28e-06,1250.2,1250.1,19.91353186]
[1672926082793,7.28e-06,1250.2,1250.1,27.91289186]
[1672926083006,7.28e-06,1250.2,1250.1,35.91225186]
[1672926083172,7.28e-06,1250.2,1250.1,28.14289186]
[1672926083385,7.28e-06,1250.2,1250.1,36.13952648]
[1672926083723,0.02797677,1250.3,1250.2,5.75199272]
[1672926083946,0.02797677,1250.3,1250.2,48.49602607]
[1672926084762,0.02797677,1250.3,1250.2,44.99602607]
[1672926086746,0.02797677,1250.3,1250.2,36.99730607]
[1672926086950,0.02797677,1250.3,1250.2,44.99602607]
[1672926089536,0.02797677,1250.3,1250.2,45.02894024]
[1672926090587,0.02797677,1250.3,1250.2,49.15234948]
[1672926090774,0.02797677,1250.3,1250.2,53.02766024]
[1672926090965,0.02797677,1250.3,1250.2,49.15234948]
[1672926091181,0.02797677,1250.3,1250.2,45.02894024]
[1672926092124,0.03065878,1250.4,1250.3,3.5]
[1672926092350,0.03065878,1250.4,1250.3,16.34724371]
[1672926092577,0.03065878,1250.4,1250.3,12.90687001]
[1672926092727,0.03065878,1250.4,1250.3,12.67687001]
[1672926092941,0.03065878,1250.4,1250.3,28.67303001]
[1672926093168,0.03065878,1250.4,1250.3,20.67495001]
[1672926094649,8.05218,1250.6,1250.3,28.67303001]
[1672926094874,8.05218,1250.6,1250.4,3.0]
[1672926095097,0.056,1250.6,1250.4,10.99724]
[1672926095255,0.6561,1250.7,1250.4,14.7236633]
[1672926095476,0.6001,1250.7,1250.4,35.18613206]
[1672926095687,24.29326738,1250.8,1250.5,3.98914951]
[1672926095940,16.65526738,1250.8,1250.5,27.97920951]
[1672926096153,16.65526738,1250.8,1250.5,28.51739506]
[1672926096364,16.65526738,1250.8,1250.5,32.35697902]
[1672926096981,0.69216738,1250.8,1250.6,3.98914951]
[1672926097171,0.63616738,1250.8,1250.7,23.98656]
[1672926097382,0.63616738,1250.8,1250.7,26.84375725]
[1672926097638,16.02582738,1250.8,1250.7,0.0596263]
[1672926097788,16.08182738,1250.8,1250.6,3.98914951]
[1672926098417,24.07670738,1250.8,1250.6,3.98914951]
[1672926098696,16.08182738,1250.8,1250.6,3.98914951]
[1672926098842,24.07670738,1250.8,1250.5,4.37776951]
[1672926099059,16.08182738,1250.8,1250.6,3.0]
[1672926099270,24.07670738,1250.8,1250.6,3.0]
[1672926100109,24.07670738,1250.8,1250.5,3.0596263]
[1672926100338,27.05410357,1250.8,1250.5,3.0]
[1672926104875,15.99232,1250.6,1250.5,3.0]
[1672926105059,16.04832,1250.6,1250.5,3.0]
[1672926105271,24.04448,1250.6,1250.4,3.0596263]
[1672926105569,24.04448,1250.6,1250.4,3.0]
[1672926106805,8.05216,1250.6,1250.4,3.0]
[1672926106968,0.056,1250.6,1250.4,21.72086014]
[1672926107319,0.056,1250.7,1250.6,15.99232]
[1672926107536,8.49876738,1250.8,1250.6,19.0519463]
[1672926107698,8.49876738,1250.8,1250.6,19.15569588]
[1672926107912,8.49876738,1250.8,1250.6,11.15953588]
[1672926108124,11.06434357,1250.8,1250.6,11.15953588]
[1672926108542,3.06946357,1250.8,1250.6,11.15953588]
[1672926108895,3.01346357,1250.8,1250.6,11.15953588]
[1672926109105,0.03606738,1250.8,1250.6,19.15569588]
[1672926109280,0.03606738,1250.8,1250.6,11.15953588]
[1672926109637,8.03094738,1250.8,1250.6,3.16337588]
[1672926109848,8.08694738,1250.8,1250.6,3.10374958]
[1672926110200,11.06434357,1250.8,1250.6,3.10374958]
[1672926111498,3.06946357,1250.8,1250.6,11.09975958]
[1672926111841,0.03606738,1250.8,1250.6,3.16337588]
[1672926112033,8.03105738,1250.8,1250.6,3.10374958]
[1672926112368,8.03105738,1250.8,1250.6,23.11490781]
[1672926112369,0.09206738,1250.8,1250.6,23.11490781]
[1672926112581,0.03606738,1250.8,1250.7,3.98914951]
[1672926112800,0.03606738,1250.8,1250.7,34.89239492]
[1672926112942,0.03606738,1250.8,1250.7,34.95202122]
[1672926113559,0.03606738,1250.8,1250.7,35.18202122]
[1672926113694,0.03606738,1250.8,1250.7,11.19546122]
[1672926114171,0.03606738,1250.8,1250.7,3.0596263]
[1672926114331,0.03606738,1250.8,1250.7,3.0]
[1672926115938,0.03806738,1250.8,1250.7,3.0]
[1672926116155,0.03606738,1250.8,1250.7,3.0]
[1672926116530,0.03606738,1250.8,1250.7,10.99552]
[1672926116798,0.03606738,1250.8,1250.7,7.3318468]
[1672926117688,0.03606738,1250.8,1250.7,23.3228868]
[1672926117952,0.03606738,1250.8,1250.7,15.3273668]
[1672926118318,0.03606738,1250.8,1250.7,23.3228868]
[1672926120673,0.03606738,1250.8,1250.7,15.3273668]
[1672926120887,0.03606738,1250.8,1250.7,7.3318468]
[1672926121306,0.03606738,1250.8,1250.7,15.3273668]
[1672926121765,0.03606738,1250.8,1250.7,7.3318468]
[1672926121924,0.03606738,1250.8,1250.7,15.3273668]
[1672926122379,0.03606738,1250.8,1250.7,31.3184068]
[1672926122594,0.03606738,1250.8,1250.7,23.3228868]
[1672926122995,0.03606738,1250.8,1250.7,15.3273668]
[1672926123618,0.03606738,1250.8,1250.7,7.3318468]
[1672926124041,8.03094738,1250.8,1250.7,3.0596263]
[1672926124277,0.09206738,1250.8,1250.7,3.0]
[1672926124446,0.03606738,1250.8,1250.7,3.0]
[1672926125009,8.03094738,1250.8,1250.7,3.0]
[1672926125220,0.09206738,1250.8,1250.7,3.0]
[1672926125438,0.03606738,1250.8,1250.7,5.6726375]
[1672926125681,0.03606738,1250.8,1250.7,5.7322638]
[1672926125958,0.03606738,1250.8,1250.7,13.7277838]
[1672926126378,0.03606738,1250.8,1250.7,21.7233038]
[1672926127954,0.03606738,1250.8,1250.7,29.7188238]
[1672926128356,0.03606738,1250.8,1250.7,33.70797331]
[1672926128978,6.738e-05,1250.8,1250.7,55.70475736]
[1672926129191,0.05013529,1250.9,1250.8,3.5]
[1672926129449,0.05013529,1250.9,1250.8,46.86316525]
[1672926129595,0.05013529,1250.9,1250.8,46.92279155]
[1672926130015,3.529e-05,1250.9,1250.8,46.92279155]
[1672926130266,3.529e-05,1250.9,1250.8,49.92279155]
[1672926131696,3.529e-05,1250.9,1250.8,22.03403155]
[1672926131912,3.529e-05,1250.9,1250.8,13.80915155]
[1672926132162,3.529e-05,1250.9,1250.8,29.79891155]
[1672926133485,3.529e-05,1250.9,1250.8,30.2774708]
[1672926133904,3.529e-05,1250.9,1250.8,14.2877108]
[1672926134114,3.529e-05,1250.9,1250.8,7.52733506]
[1672926135164,3.529e-05,1250.9,1250.8,15.52221506]
[1672926135807,3.529e-05,1250.9,1250.8,7.52733506]
[1672926136393,3.529e-05,1250.9,1250.8,15.52221506]
[1672926136540,3.529e-05,1250.9,1250.8,23.51709506]
[1672926136749,3.529e-05,1250.9,1250.8,27.73858636]
[1672926136998,3.529e-05,1250.9,1250.8,35.73346636]
[1672926138431,0.32146018,1250.9,1250.8,35.73346636]
[1672926138909,0.32146018,1250.9,1250.8,19.74370636]
[1672926139488,0.32146018,1250.9,1250.8,11.74882636]
[1672926140180,0.32146018,1250.9,1250.8,7.75967685]
[1672926140551,0.32146018,1250.9,1250.8,7.2811176]
[1672926141275,0.066,1251.0,1250.9,36.20318017]
[1672926141648,0.03972714,1251.1,1250.9,57.92571588]
[1672926141957,0.03972714,1251.1,1251.0,28.19994951]
[1672926142127,0.03972714,1251.1,1251.0,15.04237581]
[1672926142328,0.03972714,1251.1,1251.0,7.04877581]
[1672926142538,0.03972714,1251.1,1251.0,11.45546696]
[1672926143533,0.03972714,1251.1,1251.0,35.43626696]
[1672926143744,0.03972714,1251.1,1251.0,27.44266696]
[1672926144622,0.03972714,1251.1,1251.0,35.43626696]
[1672926145573,0.03972714,1251.1,1251.0,35.91482621]
[1672926145767,0.03972714,1251.1,1251.0,36.14482621]
[1672926146179,7.14e-06,1251.1,1251.0,44.54382621]
[1672926147670,7.14e-06,1251.1,1251.0,48.70836663]
[1672926147981,7.14e-06,1251.1,1251.0,44.54382621]
[1672926150940,7.14e-06,1251.1,1251.0,48.70836663]
[1672926151355,0.05640592,1251.2,1251.1,10.65099286]
[1672926151524,0.05640592,1251.2,1251.1,69.00468462]
[1672926151735,0.05640592,1251.2,1251.1,69.48324387]
[1672926151948,0.05640592,1251.2,1251.1,73.64778429]
[1672926152156,0.05640592,1251.2,1251.1,69.48324387]
[1672926154600,0.05640592,1251.2,1251.1,55.48324387]
[1672926154778,0.05640592,1251.2,1251.1,69.48324387]
[1672926154987,0.05640592,1251.2,1251.1,69.51191487]
[1672926161015,0.05640592,1251.2,1251.1,47.51191487]
[1672926161228,0.05640592,1251.2,1251.1,69.51191487]
[1672926161419,0.05640592,1251.2,1251.1,12.85536387]
[1672926161631,0.05640592,1251.2,1251.1,25.36272462]
[1672926162617,0.05640592,1251.2,1251.1,17.36976462]
[1672926162829,0.05640592,1251.2,1251.1,9.37680462]
[1672926163010,0.05640592,1251.2,1251.1,12.14680462]
[1672926163191,1.14940592,1251.2,1251.1,12.14680462]
[1672926163398,17.13404592,1251.2,1251.1,3.06161916]
[1672926163609,1.20540592,1251.2,1251.1,3.00199286]
[1672926163871,8.04872592,1251.2,1251.1,3.00199286]
[1672926164030,0.11240592,1251.2,1251.1,3.00199286]
[1672926164242,0.05640592,1251.2,1251.1,3.00199286]
[1672926165078,8.04872592,1251.2,1251.1,3.00199286]
[1672926165282,24.08936592,1251.2,1251.1,0.00199286]
[1672926165532,27.06676211,1251.2,1251.1,0.00199286]
[1672926166007,19.07444211,1251.2,1251.1,0.00199286]
[1672926166164,11.08212211,1251.2,1251.1,0.00199286]
[1672926166892,27.06676211,1251.2,1251.1,0.00199286]
[1672926167196,11.08212211,1251.2,1251.1,0.00199286]
[1672926169084,19.07444211,1251.2,1251.1,0.00199286]
[1672926169335,11.08212211,1251.2,1251.1,0.00199286]
[1672926169492,19.07444211,1251.2,1251.1,0.00199286]
[1672926170127,3.08980211,1251.2,1251.1,0.00199286]
[1672926170377,3.03380211,1251.2,1251.1,0.00199286]
[1672926170747,3.03380211,1251.2,1251.1,17.14491286]
[1672926171003,3.03380211,1251.2,1251.1,25.19749916]
[1672926171004,0.05640592,1251.2,1251.1,25.19749916]
[1672926171649,0.05640592,1251.2,1251.1,31.64674773]
[1672926175483,0.05640592,1251.2,1251.1,7.66786773]
[1672926175688,0.05640592,1251.2,1251.1,4.04877581]
[1672926175916,0.05640592,1251.2,1251.1,11.98210951]
[1672926176130,0.05640592,1251.2,1251.1,12.04173581]
[1672926176553,0.05640592,1251.2,1251.1,4.04877581]
[1672926176811,0.05640592,1251.2,1251.0,3.0596263]
[1672926176812,16.04104592,1251.2,1251.0,3.0596263]
[1672926176958,19.07444211,1251.2,1251.0,6.98914951]
[1672926177170,11.08212211,1251.2,1251.0,7.04877581]
[1672926177642,19.07444211,1251.2,1251.0,7.04877581]
[1672926177855,18.96331619,1251.1,1251.0,7.04877581]
[1672926178029,16.04192,1251.1,1251.0,7.04877581]
[1672926178219,8.04896,1251.1,1251.0,3.0596263]
[1672926178429,27.01227619,1251.1,1251.0,3.0]
[1672926178719,3.03339619,1251.1,1251.0,3.0]
[1672926178849,2.97739619,1251.1,1251.0,3.0]
[1672926180072,10.97035619,1251.1,1251.0,3.0]
[1672926180383,27.01227619,1251.1,1250.9,0.38108647]
[1672926180568,19.01931619,1251.1,1250.9,0.32146017]
[1672926180788,11.02635619,1251.1,1250.9,0.32146017]
[1672926180952,3.03339619,1251.1,1250.9,16.30955017]
[1672926181171,3.03339619,1251.1,1250.9,8.37497647]
[1672926181172,2.97739619,1251.1,1250.9,8.37497647]
[1672926181968,3.69970211,1251.2,1250.9,30.28954863]
[1672926182191,3.63370211,1251.2,1250.9,30.28954863]
[1672926182643,3.63370211,1251.2,1250.9,30.31822421]
[1672926185648,0.05640592,1251.2,1251.1,23.97888]
[1672926185857,0.05640592,1251.2,1251.1,24.0385063]
[1672926188447,0.05640592,1251.2,1251.1,27.54170593]
[1672926189219,0.05640592,1251.2,1251.1,30.54170593]
[1672926190493,0.05640592,1251.2,1251.1,14.55578593]
[1672926191260,0.05640592,1251.2,1251.1,30.54170593]
[1672926191649,0.05640592,1251.2,1251.1,14.55578593]
[1672926193344,0.05640592,1251.2,1251.1,0.0596263]
[1672926193345,27.01076211,1251.2,1251.1,0.0596263]
[1672926193517,24.08936592,1251.2,1251.0,3.0]
[1672926193728,19.07778243,1251.2,1251.0,3.0]
[1672926193958,3.09314243,1251.2,1251.0,3.0]
[1672926194205,3.03714243,1251.2,1251.0,20.94818711]
[1672926194418,3.03714243,1251.2,1251.0,21.00781341]
[1672926194612,3.03714243,1251.2,1251.0,29.00141341]
[1672926194991,19.02183243,1251.2,1251.0,5.02061341]
[1672926195223,2.98073651,1251.1,1251.0,3.0596263]
[1672926195425,2.98073651,1251.1,1251.0,10.9936]
[1672926195662,3.10314243,1251.2,1251.0,19.0468263]
[1672926195877,3.03714243,1251.2,1251.0,11.0532263]
[1672926196202,2.98073651,1251.1,1251.0,11.05120873]
[1672926196728,2.98073651,1251.1,1251.0,3.05760873]
[1672926197041,2.98073651,1251.1,1251.0,2.99798243]
[1672926197569,3.10314243,1251.2,1251.0,32.9287123]
[1672926197892,3.03714243,1251.2,1251.0,24.9947386]
[1672926198524,3.03714243,1251.2,1251.0,32.9883386]
[1672926199142,3.03714243,1251.2,1251.0,24.9947386]
[1672926200398,2.98073651,1251.1,1251.0,24.9947386]
[1672926200660,2.98073651,1251.1,1251.0,23.03395824]
[1672926203806,2.98073651,1251.1,1251.0,3.05760873]
[1672926203981,27.53826359,1251.1,1251.0,2.99798243]
[1672926204211,27.59426359,1251.1,1250.9,0.0596263]
[1672926204349,2.98196155,1251.0,1250.8,10.9948]
[1672926204560,10.97561155,1251.0,1250.8,7.04877581]
[1672926204761,11.03161155,1251.0,1250.8,8.12995]
[1672926205414,11.03161155,1251.0,1250.8,3.0596263]
[1672926205596,2.98196155,1250.9,1250.8,3.0]
[1672926205812,7.99424,1250.9,1250.8,3.0]
[1672926206036,8.05024,1250.9,1250.8,3.0]
[1672926206491,27.02068155,1250.9,1250.7,7.7572263]
[1672926206862,27.02068155,1250.9,1250.7,0.0596263]
[1672926207126,27.02068155,1250.9,1250.6,31.6807763]
[1672926207442,27.02068155,1250.9,1250.6,22.04485581]
[1672926207661,27.02068155,1250.9,1250.6,10.0596263]
[1672926207810,11.03220155,1250.9,1250.7,3.0]
[1672926208024,3.03796155,1250.9,1250.7,10.9954]
[1672926208249,2.98196155,1250.9,1250.7,19.0505463]
[1672926208981,2.98196155,1250.9,1250.7,11.0550263]
[1672926209194,10.97627155,1250.9,1250.7,11.0550263]
[1672926209403,3.03796155,1250.9,1250.7,19.0505463]
[1672926209644,2.98196155,1250.9,1250.7,19.0505463]
[1672926209860,10.97632155,1250.9,1250.7,3.0596263]
[1672926210083,11.03232155,1250.9,1250.7,3.0]
[1672926211175,3.03796155,1250.9,1250.7,10.99538]
[1672926211454,24.59161,1251.0,1250.7,19.0505263]
[1672926211455,11.64156155,1251.0,1250.7,19.0505263]
[1672926211644,19.02546155,1251.0,1250.7,11.0550063]
[1672926211822,27.01954155,1251.0,1250.7,11.0550063]
[1672926212244,0.05,1250.8,1250.7,3.0596263]
[1672926212451,11.7323233,1250.9,1250.7,3.0]
[1672926212767,30.75953485,1250.9,1250.7,3.0]
[1672926213089,30.75953485,1250.9,1250.6,3.09114812]
[1672926213462,30.75953485,1250.9,1250.6,3.03152182]
[1672926214298,3.5,1250.8,1250.5,16.18484769]
[1672926214450,19.49007,1250.8,1250.5,16.18484769]
[1672926214659,19.54607,1250.8,1250.5,16.18484769]
[1672926215534,0.056,1250.8,1250.5,16.18484769]
[1672926215747,28.30455485,1250.9,1250.5,24.18164769]
[1672926215971,36.29928485,1250.9,1250.5,24.18164769]
[1672926216447,39.41028485,1250.9,1250.5,24.18164769]
[1672926216662,11.49492,1250.8,1250.5,24.18164769]
[1672926216868,11.55092,1250.8,1250.5,24.18164769]
[1672926217224,8.05092,1250.8,1250.5,24.18164769]
[1672926217855,16.04584,1250.8,1250.5,16.18484769]
[1672926218025,0.056,1250.8,1250.5,24.66020694]
[1672926218227,9.3336433,1250.9,1250.6,0.00300646]
[1672926218444,9.3336433,1250.9,1250.6,23.99073646]
[1672926218687,20.30988485,1250.9,1250.6,24.52892201]
[1672926219131,28.30416485,1250.9,1250.6,16.53276201]
[1672926219441,20.30988485,1250.9,1250.6,16.53276201]
[1672926219805,17.3279233,1250.9,1250.6,16.53276201]
[1672926220786,25.3222033,1250.9,1250.6,16.53276201]
[1672926221125,25.32492155,1250.9,1250.6,8.53410376]
[1672926221615,28.3068831,1250.9,1250.6,8.53410376]
[1672926222171,33.31920155,1250.9,1250.6,8.53410376]
[1672926222330,36.3011631,1250.9,1250.6,0.53847376]
[1672926222544,36.3011631,1250.9,1250.5,16.18486769]
[1672926222808,36.3011631,1250.9,1250.5,8.18824769]
[1672926222975,28.3068831,1250.9,1250.5,24.18144769]
[1672926223192,20.3126031,1250.9,1250.5,24.18144769]
[1672926223521,12.3183231,1250.9,1250.5,29.01217677]
[1672926224068,9.33636155,1250.9,1250.5,29.01217677]
[1672926224236,9.33636155,1250.9,1250.5,33.00132628]
[1672926225328,17.33067155,1250.9,1250.5,33.00132628]
[1672926225544,25.32498155,1250.9,1250.5,33.00132628]
[1672926226229,35.7012531,1250.9,1250.5,28.64915645]
[1672926226434,32.71929155,1250.9,1250.5,28.64915645]
[1672926226682,16.73067155,1250.9,1250.5,28.64915645]
[1672926226874,8.73636155,1250.9,1250.5,28.64915645]
[1672926228599,8.73636155,1250.9,1250.7,23.9863]
[1672926228600,0.054,1250.9,1250.7,23.9863]
[1672926228765,34.91934155,1251.1,1250.7,31.13262076]
[1672926228766,51.24948155,1251.1,1250.7,31.13262076]
[1672926229118,3.5,1251.0,1250.7,15.14171076]
[1672926229330,23.6998,1251.1,1250.7,31.61131001]
[1672926229496,23.6878,1251.1,1250.8,3.0]
[1672926229690,31.68088,1251.1,1250.8,22.449941]
[1672926229902,23.6878,1251.1,1250.8,22.98812655]
[1672926230124,23.6878,1251.1,1250.8,14.99356655]
[1672926230363,31.68082,1251.1,1250.8,22.98844655]
[1672926230584,39.67384,1251.1,1250.8,22.98844655]
[1672926230799,23.6850307,1251.1,1250.8,34.97247606]
[1672926231444,31.6781207,1251.1,1250.8,34.97247606]
[1672926231768,0.054,1251.1,1250.9,3.98914951]
[1672926232084,8.04878592,1251.2,1251.0,3.0]
[1672926232249,8.10278592,1251.2,1251.0,3.4829194]
[1672926232461,8.10275592,1251.2,1251.0,3.4829194]
[1672926232691,8.10275592,1251.2,1251.0,7.02561009]
[1672926232883,8.10275592,1251.2,1251.0,7.08523639]
[1672926233319,0.11040592,1251.2,1251.0,15.07878639]
[1672926233659,0.05640592,1251.2,1251.0,15.07878639]
[1672926234924,8.04879592,1251.2,1251.0,7.08523639]
[1672926235231,27.06946747,1251.2,1251.0,3.5425457]
[1672926235393,27.06946747,1251.2,1251.0,3.00436015]
[1672926237596,19.07707747,1251.2,1251.0,3.00436015]
[1672926239396,27.06946747,1251.2,1251.0,3.00436015]
[1672926241739,27.06946747,1251.2,1250.9,7.6435263]
[1672926241927,26.96276155,1251.0,1250.9,0.0596263]
[1672926242145,19.02316155,1251.0,1250.7,0.0596263]
[1672926242349,19.02316155,1251.0,1250.7,11.98436951]
[1672926242540,19.02316155,1251.0,1250.7,18.11624839]
[1672926242742,19.02316155,1251.0,1250.7,34.10710839]
[1672926242743,3.03596155,1251.0,1250.7,34.10710839]
[1672926242953,2.98196155,1251.0,1250.7,34.10710839]
[1672926243422,2.98196155,1251.0,1250.8,10.99466]